bitfinex-derivatives/quotes_SOLF0:USTF0_20251208
["timestamp","ask_amount","ask_price","bid_price","bid_amount"]
[1765215756140,3.05,135.16,135.13,6.66]
[1765215756339,3.05,135.16,135.11,103.6209]
[1765215756723,3.05,135.19,135.14,6.6597]
[1765215757342,0.05146396,135.18,135.15,0.0507789]
[1765215757835,3.10146396,135.18,135.15,0.0507789]
[1765215760738,3.10146396,135.18,135.09,6.662]
[1765215760739,3.05,135.15,135.09,6.662]
[1765215761435,3.05,135.15,135.1,6.6616]
[1765215761641,3.10307063,135.14,135.11,0.05047158]
[1765215762339,3.10307063,135.14,135.11,6.71157158]
[1765215763043,0.05307063,135.14,135.12,6.6606]
[1765215763940,0.05307063,135.14,135.12,69.5806]
[1765215766136,3.05,135.2,135.16,6.6587]
[1765215766344,3.05,135.2,135.12,62.92]
[1765215767039,3.09851745,135.17,135.15,0.04958551]
[1765215767240,3.10401061,135.17,135.15,0.04958551]
[1765215770746,3.15401061,135.17,135.15,6.70848551]
[1765215772247,3.15401061,135.17,135.15,0.04958551]
[1765215773045,0.05401061,135.17,135.15,0.04958551]
[1765215773451,3.15401061,135.17,135.15,0.04958551]
[1765215774143,8.61399903,135.16,135.15,0.04958551]
[1765215774939,3.1,135.15,135.11,62.92]
[1765215775945,3.1,135.15,135.12,0.05327795]
[1765215776453,5.51710405,135.14,135.12,0.05327795]
[1765215776656,3.1,135.13,135.12,0.05327795]
[1765215776955,108.45610718,135.2,135.12,0.05327795]
[1765215776956,0.05280972,135.14,135.12,6.71387795]
[1765215777153,0.04878457,135.14,135.12,6.71387795]
[1765215782956,3.28878457,135.14,135.12,0.05327795]
[1765215784348,0.04878457,135.14,135.12,0.05327795]
[1765215785147,0.04878457,135.14,135.12,6.71377795]
[1765215786357,3.28878457,135.14,135.12,0.05327795]
[1765215790260,0.04878457,135.14,135.12,0.05327795]
[1765215790958,0.04878457,135.14,135.12,6.71407795]
[1765215791558,0.04878457,135.14,135.12,69.63407795]
[1765215792059,3.28878457,135.14,135.12,62.97327795]
[1765215792662,3.28878457,135.14,135.12,69.63407795]
[1765215793458,3.28878457,135.14,135.12,0.05327795]
[1765215794261,0.04878457,135.14,135.12,0.05327795]
[1765215794857,3.28878457,135.14,135.12,0.05327795]
[1765215797166,5.53047289,135.13,135.12,0.05327795]
[1765215798654,8.57047289,135.13,135.12,0.05327795]
[1765215805774,3.04,135.12,135.03,1.31605104]
[1765215805971,3.04,135.1,135.03,5.14903536]
[1765215806665,47.83298432,135.14,135.03,1.31605104]
[1765215806666,3.04,135.08,135.03,1.31605104]
[1765215806863,3.04,135.06,135.04,0.04968664]
[1765215807061,3.08801413,135.06,135.04,0.04735378]
[1765215810178,0.04801413,135.06,135.04,0.04735378]
[1765215810373,0.04801413,135.06,135.04,3.8803381]
[1765215810975,5.151118,135.14,135.04,5.3603381]
[1765215810976,3.04,135.14,135.04,5.3603381]
[1765215811180,5.51659713,135.13,135.06,3.83298432]
[1765215811366,8.55659713,135.12,135.06,3.83298432]
[1765215811570,3.04,135.12,135.06,3.83298432]
[1765215811975,0.04803447,135.1,135.08,0.05599459]
[1765215813879,0.04803447,135.1,135.08,3.88897891]
[1765215814670,0.04803447,135.1,135.09,2.4530886]
[1765215815068,0.04803447,135.1,135.09,3.9330886]
[1765215815270,0.04803447,135.1,135.09,2.4530886]
[1765215815475,0.04803447,135.1,135.08,2.50908319]
[1765215822477,0.04803447,135.1,135.08,9.17178319]
[1765215826183,3.04,135.15,135.09,103.6359]
[1765215826378,3.04,135.15,135.12,2.4530886]
[1765215827075,3.04,135.15,135.12,0.05142069]
[1765215827281,3.04,135.13,135.12,0.05142069]
[1765215827480,8.56040668,135.13,135.12,0.05142069]
[1765215827684,8.56040457,135.13,135.12,0.05142069]
[1765215830586,3.1,135.12,135.06,72.0566886]
[1765215830786,3.1,135.11,135.06,72.0566886]
[1765215831286,3.1,135.09,135.06,65.3930886]
[1765215831792,3.15662809,135.09,135.06,65.4492647]
[1765215832792,3.15662809,135.09,135.06,62.9961761]
[1765215833184,3.15662809,135.09,135.06,69.6598761]
[1765215834194,0.05662809,135.09,135.06,69.6598761]
[1765215835193,3.15662809,135.09,135.06,69.6598761]
[1765215835390,3.15662809,135.09,135.06,0.0561761]
[1765215839990,0.05662809,135.09,135.06,0.0561761]
[1765215841484,0.05662809,135.09,135.07,6.6633]
[1765215841890,3.32662809,135.09,135.06,0.0561761]
[1765215842395,3.27,135.07,135.03,1.31605104]
[1765215842698,3.27,135.05,135.03,1.31605104]
[1765215843402,3.27,135.05,135.03,1.36385537]
[1765215843403,3.31986048,135.05,135.03,1.36385537]
[1765215844205,0.04986048,135.05,135.03,1.36385537]
[1765215844800,3.31986048,135.05,135.03,1.36385537]
[1765215845592,3.31986048,135.05,135.03,8.02905537]
[1765215846205,3.31986048,135.05,135.03,1.36385537]
[1765215847000,0.04986048,135.05,135.03,1.36385537]
[1765215847391,0.04986048,135.05,135.03,8.02895537]
[1765215851707,0.04986048,135.05,135.03,1.36385537]
[1765215851901,3.31986048,135.05,135.03,1.36385537]
[1765215852102,0.04986048,135.05,135.03,1.36385537]
[1765215853110,3.31986048,135.05,135.03,1.36385537]
[1765215855600,3.27,135.03,134.99,2.45603716]
[1765215855803,3.27,135.01,134.97,2.45603716]
[1765215856407,3.27,135.01,134.96,2.45603716]
[1765215856617,0.05335451,135.0,134.98,2.45603716]
[1765215856806,0.05335451,135.0,134.98,9.12373716]
[1765215858515,0.05335451,135.0,134.98,72.08373716]
[1765215858819,3.27,135.04,134.98,65.41603716]
[1765215859014,3.27,135.04,135.01,2.45603716]
[1765215859718,3.31970161,135.04,135.01,2.50939167]
[1765215861418,3.31970161,135.04,135.01,9.17549167]
[1765215863220,3.31970161,135.04,135.02,6.6657]
[1765215863621,0.04970161,135.04,135.02,6.6657]
[1765215865126,0.04970161,135.04,135.03,2.45603716]
[1765215866227,0.04970161,135.04,135.02,6.6657]
[1765215868831,0.04970161,135.04,135.02,9.12173716]
[1765215870336,5.75603716,135.1,135.05,6.6642]
[1765215870536,3.3,135.08,135.05,9.12023716]
[1765215870736,71.45661193,135.12,135.05,2.45603716]
[1765215870948,3.3,135.14,135.09,2.45603716]
[1765215871128,3.3,135.14,135.06,166.6137]
[1765215871129,3.3,135.14,135.11,2.45603716]
[1765215871326,3.3,135.14,135.11,0.05130266]
[1765215871534,3.34861779,135.14,135.11,0.05130266]
[1765215873640,3.34861779,135.14,135.11,2.50733982]
[1765215874629,3.34861779,135.14,135.11,0.05130266]
[1765215876246,3.3,135.12,135.03,103.6785]
[1765215876433,3.3,135.12,135.06,2.45603716]
[1765215876738,3.3,135.12,135.05,3.83477576]
[1765215877136,3.3,135.11,135.04,62.96]
[1765215877333,3.83477576,135.12,135.06,0.04899627]
[1765215877334,3.35214779,135.09,135.06,0.04899627]
[1765215879539,3.3,135.08,135.06,0.04899627]
[1765215881943,5.52898781,135.07,135.06,0.04899627]
[1765215882149,8.82898781,135.07,135.06,0.04899627]
[1765215885739,3.3,135.07,135.06,0.04899627]
[1765215886144,8.82855967,135.07,135.06,0.04899627]
[1765215886347,3.3,135.07,135.06,0.04899627]
[1765215886647,8.82923841,135.07,135.06,0.04899627]
[1765215886946,3.3,135.07,135.06,0.04899627]
[1765215887148,8.82957729,135.07,135.06,0.04899627]
[1765215887646,3.3,135.07,135.06,0.04899627]
[1765215888149,8.82958445,135.07,135.06,0.04899627]
[1765215888343,3.3,135.07,135.06,0.04899627]
[1765215888548,3.29,135.08,135.06,0.04899627]
[1765215898565,3.34214779,135.09,135.06,6.71279627]
[1765215900362,44.0,135.08,135.01,3.83477576]
[1765215900563,3.01,135.07,135.01,3.83477576]
[1765215900958,3.01,135.07,135.04,6.6645]
[1765215901659,3.06441395,135.07,135.04,6.6645]
[1765215901854,0.05441395,135.07,135.05,6.6642]
[1765215902069,8.19443038,135.13,135.06,103.6581]
[1765215902271,3.01,135.11,135.07,6.6631]
[1765215903058,3.06658124,135.1,135.08,0.05651193]
[1765215905069,3.06658124,135.1,135.08,6.71921193]
[1765215906164,0.05658124,135.1,135.08,6.71921193]
[1765215906758,3.06658124,135.1,135.08,0.05651193]
[1765215907364,8.53807233,135.09,135.08,0.05651193]
[1765215907566,3.01,135.08,135.02,3.83477576]
[1765215907980,3.01,135.08,135.04,3.83477576]
[1765215908575,0.05106647,135.07,135.04,3.83477576]
[1765215908971,3.06106647,135.07,135.02,3.83477576]
[1765215909169,3.06106647,135.07,135.0,66.79477576]
[1765215909569,3.06106647,135.07,135.01,6.6658]
[1765215912272,3.06106647,135.07,135.02,6.6657]
[1765215913181,3.06106647,135.07,135.03,6.6651]
[1765215913594,3.06106647,135.07,135.02,3.83477576]
[1765215914092,3.06106647,135.07,135.02,10.50007576]
[1765215914874,3.06106647,135.07,135.03,6.665]
[1765215915484,3.06106647,135.07,135.0,66.79477576]
[1765215915686,3.01,135.05,135.0,66.79477576]
[1765215915885,3.01,135.03,135.0,62.96]
[1765215917684,3.0603211,135.04,135.0,69.6266]
[1765215920186,3.0603211,135.04,135.01,6.6661]
[1765215923788,0.0503211,135.04,135.02,10.50037576]
[1765215924192,0.0503211,135.04,135.02,6.6656]
[1765215929499,3.1903211,135.04,134.98,3.83477576]
[1765215929699,8.70299057,135.03,134.98,66.79477576]
[1765215929892,3.14,135.03,134.98,66.79477576]
[1765215930092,0.0503211,135.04,134.98,66.79477576]
[1765215930288,5.56285375,135.03,135.01,6.6662]
[1765215930492,3.1903211,135.04,135.01,6.6662]
[1765215931101,0.0503211,135.04,135.02,6.6657]
[1765215931303,3.1903211,135.04,134.98,170.51297576]
[1765215932398,3.1903211,135.04,135.0,3.83477576]
[1765215932701,0.0503211,135.04,135.0,3.83477576]
[1765215933601,0.0503211,135.04,135.02,6.6655]
[1765215933801,0.0503211,135.04,135.02,69.6255]
[1765215933999,0.0503211,135.04,135.02,73.46027576]
[1765215934504,3.1903211,135.04,134.98,3.83477576]
[1765215934706,3.1903211,135.04,134.98,66.79477576]
[1765215935502,3.1903211,135.04,134.99,6.667]
[1765215935896,8.70162796,135.03,134.99,6.667]
[1765215936091,3.14,135.03,134.99,6.667]
[1765215937610,0.0503211,135.04,134.98,66.79477576]
[1765215937611,0.0503211,135.04,135.0,3.83477576]
[1765215937903,0.0503211,135.04,135.02,3.83477576]
[1765215938109,3.1903211,135.04,135.02,62.96]
[1765215938818,0.0503211,135.04,135.02,72.08143981]
[1765215945206,5.57544269,135.07,135.06,6.6638]
[1765215945405,3.14,135.09,135.06,6.6638]
[1765215945609,8.71627631,135.08,135.06,6.6638]
[1765215945819,3.14,135.08,135.06,6.6638]
[1765215946416,0.05613312,135.08,135.07,6.6632]
[1765215946715,5.63279891,135.08,135.07,6.6632]
[1765215947323,3.14,135.07,135.06,0.05098031]
[1765215947517,8.71666579,135.07,135.06,0.05098031]
[1765215948025,3.14,135.06,135.0,65.41573981]
[1765215948320,3.14,135.04,135.0,65.41573981]
[1765215948912,3.14,135.04,135.02,6.6657]
[1765215949117,0.05174987,135.04,135.0,65.41573981]
[1765215949515,3.19174987,135.04,135.0,65.41573981]
[1765215950216,3.19174987,135.04,135.01,6.6662]
[1765215950413,3.14,135.02,134.97,2.45573981]
[1765215950612,3.14,135.0,134.97,2.45573981]
[1765215951517,3.14,135.0,134.97,9.12363981]
[1765215951721,3.18709273,135.01,134.97,9.12363981]
[1765215952213,5.58638035,135.0,134.97,6.6679]
[1765215952420,3.18709273,135.01,134.97,9.12363981]
[1765215952612,3.18709273,135.01,134.97,6.6679]
[1765215952913,3.18709273,135.01,134.97,9.12363981]
[1765215953108,3.14,134.99,134.93,1.28915149]
[1765215953311,3.14,134.99,134.81,18.31991626]
[1765215953312,3.14,134.94,134.88,2.45573981]
[1765215953506,0.04859803,134.92,134.9,6.6713]
[1765215953706,0.04859803,134.92,134.91,62.96]
[1765215953922,3.14,134.97,134.91,62.96]
[1765215954219,3.14,134.97,134.93,9.12573981]
[1765215954723,5.57546504,134.96,134.93,9.12573981]
[1765215955018,0.05021486,134.96,134.93,9.17433784]
[1765215955222,3.14,134.95,134.93,0.04859803]
[1765215955424,0.05021486,134.96,134.93,0.04859803]
[1765215956922,3.19021486,134.96,134.93,0.04859803]
[1765215957822,0.05021486,134.96,134.93,6.71859803]
[1765215958028,0.05021486,134.96,134.93,0.04859803]
[1765215958520,0.05021486,134.96,134.94,9.12533981]
[1765215961225,0.05021486,134.96,134.94,6.6696]
[1765215961424,0.05021486,134.96,134.95,2.45573981]
[1765215961818,0.05021486,134.96,134.95,65.43573981]
[1765215964721,3.21021486,134.96,134.95,62.98]
[1765215966127,3.21021486,134.96,134.93,2.50433784]
[1765215966319,3.21021486,134.96,134.95,63.0]
[1765215968226,0.05021486,134.96,134.95,63.0]
[1765215971828,5.54680433,135.01,134.95,63.0]
[1765215972033,3.16,135.01,134.98,2.45573981]
[1765215972229,3.16,135.01,134.99,63.0]
[1765215972423,3.16,135.01,134.99,69.6671]
[1765215972624,3.16,135.04,135.0,2.45573981]
[1765215972829,0.05175815,135.03,135.01,0.05124132]
[1765215973126,3.16,135.01,134.99,63.0]
[1765215973332,3.16,135.0,134.97,65.45573981]
[1765215973529,3.16,135.0,134.97,63.0]
[1765215973933,3.21565883,135.0,134.97,63.04757157]
[1765215975632,3.21565883,135.0,134.97,0.04757157]
[1765215978734,3.21565883,135.0,134.97,6.71567157]
[1765215978934,0.05565883,135.0,134.98,2.45573981]
[1765215979236,3.30565883,135.0,134.98,2.45573981]
[1765215980528,3.30565883,135.0,134.98,9.12333981]
[1765215982234,3.30565883,135.0,134.97,0.04757157]
[1765215982631,9.97245883,135.0,134.97,0.04757157]
[1765215982842,5.70573981,134.98,134.93,2.45573981]
[1765215983138,3.25,134.97,134.93,2.45573981]
[1765215983343,3.25,134.96,134.93,9.12593981]
[1765215983530,3.25,134.96,134.92,2.45573981]
[1765215984037,3.29701305,134.95,134.92,2.45573981]
[1765215984236,3.29701305,134.95,134.85,103.8167]
[1765215984432,0.05522861,134.91,134.87,2.45573981]
[1765215984636,3.30522861,134.91,134.87,2.45573981]
[1765215985437,3.30522861,134.91,134.88,6.6725]
[1765215986032,3.30522861,134.91,134.81,215.11031004]
[1765215986341,0.05073172,134.88,134.86,2.45573981]
[1765215987342,0.05073172,134.88,134.86,65.45573981]
[1765215987743,0.05073172,134.88,134.86,2.45573981]
[1765215988132,0.05073172,134.88,134.86,9.12913981]
[1765215988331,0.05073172,134.88,134.86,72.12913981]
[1765215988936,8.79484341,134.95,134.88,103.7963]
[1765215989138,3.25,134.94,134.91,2.45573981]
[1765215990049,3.30478068,134.94,134.91,9.17607655]
[1765215991449,0.05478068,134.94,134.93,2.45573981]
[1765215993243,3.25,134.98,134.93,106.21143981]
[1765215993449,3.25,134.98,134.96,2.45573981]
[1765215993851,3.25,135.01,134.96,9.12433981]
[1765215994052,8.81641584,135.0,134.98,2.45573981]
[1765215994249,3.29717545,135.0,134.98,2.50877947]
[1765215994448,0.04717545,135.0,134.98,9.17647947]
[1765215994654,0.04717545,135.0,134.98,72.19647947]
[1765215996753,0.04717545,135.0,134.98,75.5893404]
[1765215997951,5.57391255,135.05,135.01,6.6661]
[1765215998147,8.4424729,135.08,135.01,68.84860074]
[1765215998352,5.57486886,135.07,135.01,68.84860074]
[1765215998555,3.25,135.08,135.01,68.84860074]
[1765215998756,5.57252925,135.07,135.01,68.84860074]
[1765215999063,0.04795694,135.05,135.03,0.04844363]
[1765215999359,0.04795694,135.05,135.03,6.71354363]
[1765215999757,0.04795694,135.05,135.04,63.0]
[1765216003555,3.29795694,135.05,135.03,0.04844363]
[1765216005476,9.96255694,135.05,135.03,0.04844363]
[1765216005664,3.25,135.04,135.03,0.04844363]
[1765216006585,3.29795694,135.05,135.03,0.04844363]
[1765216007394,3.25,135.03,134.98,62.98]
[1765216007871,3.25,135.02,134.94,112.90742978]
[1765216008077,3.25,135.02,134.95,62.98]
[1765216008265,3.13598141,135.0,134.97,0.04694047]
[1765216009784,3.13598141,135.0,134.97,6.71504047]
[1765216010781,0.05598141,135.0,134.98,6.6676]
[1765216011476,0.05598141,135.0,134.99,62.98]
[1765216012588,3.08,135.06,135.0,103.7056]
[1765216013487,66.06,135.09,135.0,112.86592978]
[1765216013681,0.05690258,135.04,135.02,0.05416449]
[1765216013983,0.05238176,135.04,135.02,0.05416449]
[1765216014484,0.05238176,135.04,135.03,69.6452]
[1765216014886,3.08,135.08,135.05,6.664]
[1765216015987,0.04875811,135.08,135.05,0.04904516]
[1765216016682,0.04875811,135.08,135.07,6.6632]
[1765216016884,44.0,135.12,135.07,69.6432]
[1765216017079,260.46685076,135.13,135.07,166.629]
[1765216017278,260.46685076,135.13,135.09,6.662]
[1765216017885,3.08,135.13,135.09,6.662]
[1765216018087,0.05341483,135.12,135.1,0.05177441]
[1765216018679,0.05341483,135.12,135.1,6.71327441]
[1765216020384,3.08,135.16,135.11,69.6212]
[1765216020582,3.08,135.16,135.11,62.96]
[1765216021086,3.08,135.16,135.11,69.6211]
[1765216021281,0.05593029,135.15,135.11,69.6211]
[1765216021984,0.05593029,135.15,135.12,6.6606]
[1765216022291,0.05593029,135.15,135.12,103.6135]
[1765216022484,0.05593029,135.15,135.11,166.5763]
[1765216023485,0.05593029,135.15,135.13,6.6602]
[1765216023685,3.13593029,135.15,135.1,0.05177441]
[1765216023890,3.13593029,135.15,135.11,62.96]
[1765216024284,3.13593029,135.15,135.1,0.05177441]
[1765216024484,3.13593029,135.15,135.11,62.96]
[1765216025992,0.05593029,135.15,135.13,6.6601]
[1765216026697,3.17,135.21,135.13,103.6023]
[1765216027289,3.17,135.2,135.14,6.6595]
[1765216027487,3.17,135.2,135.1,103.6268]
[1765216027690,3.17,135.19,135.11,62.94]
[1765216027884,3.17,135.15,135.1,6.6615]
[1765216028089,3.17,135.08,134.98,103.7168]
[1765216028387,3.17,135.08,135.0,103.7038]
[1765216028588,3.17,135.08,135.0,166.6438]
[1765216028788,3.17,135.08,134.98,103.7168]
[1765216029088,3.17,135.04,135.02,0.0547164]
[1765216033591,0.05586492,135.05,135.02,0.0547164]
[1765216035590,0.05586492,135.05,135.02,6.7202164]
[1765216036792,3.22586492,135.05,135.02,6.7202164]
[1765216038395,3.22586492,135.05,135.02,0.0547164]
[1765216043803,3.22586492,135.05,135.02,6.7203164]
[1765216044106,0.05586492,135.05,135.02,63.0147164]
[1765216044402,3.21586492,135.05,135.02,63.0147164]
[1765216044596,3.21586492,135.05,135.02,0.0547164]
[1765216046600,3.21586492,135.05,135.02,6.7204164]
[1765216048701,3.21586492,135.05,135.02,0.0547164]
[1765216048908,9.88036492,135.05,135.02,0.0547164]
[1765216049107,3.16,135.04,135.02,0.0547164]
[1765216049706,9.825,135.04,135.02,0.0547164]
[1765216049907,3.16,135.03,135.02,0.0547164]
[1765216050800,3.16,135.02,134.97,62.96]
[1765216051003,8.73510012,135.04,134.97,62.96]
[1765216051204,3.16,135.03,134.97,62.96]
[1765216051807,0.04979727,135.01,134.99,0.05319694]
[1765216052400,3.20979727,135.01,134.99,0.05319694]
[1765216053810,0.04979727,135.01,134.99,0.05319694]
[1765216054402,0.04979727,135.01,134.99,6.71999694]
[1765216054601,3.16,135.07,134.99,10.69352672]
[1765216054810,3.16,135.07,134.99,9.16032978]
[1765216055206,3.16,135.06,135.02,6.6657]
[1765216055411,3.16,135.06,134.96,175.87132978]
[1765216055610,3.16,135.03,135.01,0.04798993]
[1765216059210,0.05503863,135.04,135.01,0.04798993]
[1765216060507,3.21503863,135.04,135.01,0.04798993]
[1765216060712,3.21503863,135.04,135.01,2.50459191]
[1765216061100,3.16,135.03,135.01,2.50459191]
[1765216062814,3.16,135.03,135.01,0.04798993]
[1765216065617,3.21503863,135.04,135.01,0.04798993]
[1765216069009,9.87993863,135.04,135.01,0.04798993]
[1765216069212,3.0,135.02,135.01,0.04798993]
[1765216070305,8.60982741,135.02,135.01,0.04798993]
[1765216070510,3.0,135.01,134.96,69.6483]
[1765216070705,3.0,135.01,134.97,6.6682]
[1765216071514,3.05192279,135.0,134.98,0.05666872]
[1765216072115,5.62632681,134.99,134.98,0.05666872]
[1765216073520,5.62632681,134.99,134.98,6.72436872]
[1765216073716,0.05192279,135.0,134.98,0.05666872]
[1765216074417,0.05192279,135.0,134.99,6.6672]
[1765216076021,3.0,135.06,135.0,103.7055]
[1765216076226,8.62598584,135.05,135.01,68.82998993]
[1765216076424,9.85064099,135.08,135.01,68.82998993]
[1765216076611,13.83282732,135.07,135.01,68.82998993]
[1765216076923,0.04825824,135.05,135.03,0.04850199]
[1765216078123,0.04825824,135.05,135.03,6.71370199]
[1765216079120,9.85064099,135.09,135.05,6.6639]
[1765216079318,5.62558695,135.08,135.05,6.6639]
[1765216079518,5.62558695,135.07,135.05,6.6639]
[1765216079720,3.0,135.09,135.05,6.6639]
[1765216080022,8.84753632,135.08,135.05,6.6639]
[1765216080223,5.62753632,135.07,135.05,6.71473214]
[1765216080414,3.26696443,135.08,135.05,6.71473214]
[1765216080620,5.63041236,135.07,135.05,6.71473214]
[1765216080821,6.85064099,135.12,135.06,166.6362]
[1765216081017,5.62869615,135.11,135.07,109.49878993]
[1765216081223,3.22,135.14,135.07,6.6629]
[1765216081423,3.22,135.12,135.07,6.6629]
[1765216081618,8.84187324,135.11,135.07,6.6629]
[1765216081824,0.05333136,135.1,135.08,0.05675097]
[1765216082225,0.05333136,135.1,135.08,6.71925097]
[1765216083028,0.05333136,135.1,135.08,69.67925097]
[1765216084731,0.05333136,135.1,135.09,2.45287927]
[1765216085627,3.22,135.17,135.09,2.45287927]
[1765216085928,3.22,135.15,135.08,166.6015]
[1765216086134,3.22,135.15,135.12,2.45287927]
[1765216086431,3.22,135.15,135.04,103.6713]
[1765216086432,5.67287927,135.15,135.04,103.6713]
[1765216086628,3.26732602,135.11,135.09,2.45287927]
[1765216087429,0.04732602,135.11,135.09,2.45287927]
[1765216088035,0.04732602,135.11,135.1,6.6618]
[1765216088531,3.26732602,135.11,135.08,63.01445762]
[1765216088728,3.26732602,135.11,135.08,65.46733689]
[1765216089422,3.22,135.08,135.03,2.45287927]
[1765216090326,0.04910014,135.07,135.04,0.05624072]
[1765216090526,3.22,135.06,135.04,0.05624072]
[1765216094630,0.04910014,135.07,135.04,0.05624072]
[1765216095535,3.26910014,135.07,135.05,6.664]
[1765216095928,0.04910014,135.07,135.05,6.664]
[1765216096826,3.26910014,135.07,135.04,0.05624072]
[1765216097136,8.79722827,135.06,134.95,213.32588161]
[1765216097337,3.22,135.04,134.96,62.96]
[1765216097736,3.22,135.04,134.98,6.6675]
[1765216097940,3.22,135.04,134.96,166.6935]
[1765216098140,3.26720432,135.01,134.99,0.04677647]
[1765216098340,3.26752709,135.01,134.99,0.04677647]
[1765216099540,3.26752709,135.01,134.99,6.71387647]
[1765216104245,0.04752709,135.01,134.99,6.71387647]
[1765216104447,3.14752709,135.01,134.99,6.71387647]
[1765216111657,0.04752709,135.01,134.99,6.71387647]
[1765216114560,3.1,135.04,135.01,6.6661]
[1765216115156,3.1,135.04,135.0,2.4574094]
[1765216115546,49.55847957,135.05,135.0,2.4574094]
[1765216115547,3.1,135.02,135.0,2.4574094]
[1765216116358,3.1,135.02,135.0,9.1241094]
[1765216118965,3.1,135.02,134.99,0.04677647]
[1765216119964,3.1,135.02,134.99,6.71397647]
[1765216122566,3.1,135.02,135.0,6.6667]
[1765216123266,0.05008219,135.03,135.0,6.6667]
[1765216123467,3.15008219,135.03,135.0,6.6667]
[1765216125164,3.15008219,135.03,134.99,0.04677647]
[1765216125365,0.05008219,135.03,135.01,6.6662]
[1765216125567,0.05008219,135.03,134.99,0.04677647]
[1765216125568,0.05008219,135.03,135.0,3.83929962]
[1765216125768,3.15008219,135.03,134.99,0.04677647]
[1765216126366,3.15008219,135.03,135.0,6.6664]
[1765216126570,3.1,135.01,134.87,13.3459]
[1765216126760,3.1,134.99,134.9,103.782]
[1765216127073,3.1,134.99,134.93,3.83929962]
[1765216127273,3.1,134.99,134.95,3.83929962]
[1765216127468,3.1,134.99,134.96,6.6686]
[1765216127668,3.15010348,134.99,134.96,6.71815613]
[1765216128471,3.15010348,134.99,134.96,0.04955613]
[1765216128960,8.65405861,134.98,134.96,0.04955613]
[1765216129162,3.1,134.97,134.96,0.04955613]
[1765216129370,3.1,134.98,134.96,0.04955613]
[1765216130773,3.1,134.96,134.92,62.98]
[1765216131776,3.15521396,134.95,134.93,0.05033201]
[1765216137572,3.15521396,134.95,134.87,107.64369962]
[1765216137774,3.1,134.93,134.87,107.64369962]
[1765216137975,3.1,134.93,134.88,6.6724]
[1765216138579,3.1,134.93,134.89,0.05599716]
[1765216138882,3.1,134.91,134.89,0.05599716]
[1765216140085,0.05053875,134.92,134.89,6.72799716]
[1765216140875,0.05053875,134.92,134.9,6.6713]
[1765216141077,0.05053875,134.92,134.9,69.6713]
[1765216142173,0.05053875,134.92,134.9,73.51059962]
[1765216142989,3.07,134.97,134.94,6.6696]
[1765216143185,3.07,134.97,134.91,103.7731]
[1765216143380,3.07,134.97,134.9,66.83929962]
[1765216143578,3.07,134.97,134.91,6.6708]
[1765216143785,3.07,134.97,134.9,66.83929962]
[1765216144085,3.07,134.94,134.92,0.04887683]
[1765216144690,3.12630654,134.95,134.93,6.67]
[1765216145279,0.05630654,134.95,134.93,6.67]
[1765216147080,3.12630654,134.95,134.93,6.67]
[1765216149086,0.05630654,134.95,134.93,6.67]
[1765216149295,3.12630654,134.95,134.93,6.67]
[1765216149583,3.12630654,134.95,134.92,0.04887683]
[1765216151384,0.05630654,134.95,134.92,0.04887683]
[1765216151783,3.12630654,134.95,134.92,0.04887683]
[1765216153291,0.05630654,134.95,134.92,0.04887683]
[1765216153679,3.12630654,134.95,134.92,0.04887683]
[1765216154286,3.07,135.01,134.94,107.58809962]
[1765216154584,3.07,134.99,134.87,207.6029]
[1765216154778,3.07,134.94,134.87,166.8184]
[1765216154984,3.07,134.94,134.89,3.83929962]
[1765216155384,0.05515886,134.93,134.9,0.05501081]
[1765216155586,3.12515886,134.93,134.91,6.671]
[1765216155780,3.12515886,134.93,134.9,0.05501081]
[1765216158696,3.11,134.91,134.9,0.05501081]
[1765216159395,3.11,134.9,134.82,107.68239962]
[1765216159695,8.81097307,134.9,134.85,103.8205]
[1765216159897,3.11,134.9,134.88,6.6726]
[1765216160489,3.15794263,134.9,134.88,6.72179975]
[1765216160982,0.04794263,134.9,134.88,6.72179975]
[1765216161184,3.15794263,134.9,134.88,6.72179975]
[1765216165502,3.15794263,134.9,134.88,0.04919975]
[1765216165896,0.04794263,134.9,134.88,0.04919975]
[1765216167298,0.04794263,134.9,134.89,3.83929962]
[1765216167601,3.11,134.96,134.89,66.87929962]
[1765216167800,5.71261215,134.95,134.89,66.87929962]